bitfinex-derivatives/quotes_SOLF0:USTF0_20250428
["timestamp","ask_amount","ask_price","bid_price","bid_amount"]
[1745836339977,19.84,152.23,152.0,11.7662]
[1745836340482,4.41965973,152.22,152.0,11.7662]
[1745836340686,4.41965973,152.21,152.0,11.7662]
[1745836340986,4.42082472,152.2,152.0,11.7662]
[1745836341285,32.9738,152.23,152.0,11.7662]
[1745836341485,4.41946462,152.22,152.0,11.7662]
[1745836341785,4.41946462,152.21,152.01,6.21657671]
[1745836341985,3.8403,152.21,152.01,367.21657671]
[1745836342187,3.8403,152.21,152.13,6.5707]
[1745836342385,3.7981,152.22,152.06,473.02]
[1745836343388,3.7981,152.22,152.06,834.02]
[1745836343691,7.8368,152.29,152.13,92.35087364]
[1745836343984,7.8368,152.29,152.11,153.91812274]
[1745836343985,6.5672,152.22,152.07,98.56745035]
[1745836344187,6.5672,152.22,152.12,4.1355]
[1745836344681,7.8368,152.29,152.14,6.5704]
[1745836345688,7.8368,152.29,152.12,4.1355]
[1745836345988,6.5657,152.26,152.12,4.1355]
[1745836346187,3.8403,152.29,152.12,4.1355]
[1745836346488,6.5644,152.29,152.12,407.1355]
[1745836346783,3.8266,152.36,152.24,6.5662]
[1745836346990,3.8266,152.36,152.18,472.94]
[1745836347288,6.564,152.3,152.18,472.94]
[1745836347789,3.8232,152.39,152.18,472.94]
[1745836347979,3.8232,152.39,152.18,833.94]
[1745836348184,6.5639,152.3,152.18,833.94]
[1745836348384,6.5639,152.3,152.23,6.5664]
[1745836348584,6.5639,152.3,152.18,833.94]
[1745836348986,6.5641,152.29,152.18,833.94]
[1745836349280,4.0469,152.38,152.22,6.5668]
[1745836349482,4.0469,152.38,152.18,833.94]
[1745836349785,4.0469,152.38,152.25,6.5657]
[1745836349984,4.0469,152.38,152.19,6.0645833]
[1745836350393,6.5638,152.3,152.24,6.5659]
[1745836350987,6.5635,152.31,152.24,6.5659]
[1745836351192,4.0469,152.38,152.2,8.1252]
[1745836351492,6.5631,152.32,152.2,8.1252]
[1745836351694,4.0469,152.38,152.24,6.5659]
[1745836351891,4.0469,152.38,152.21,3.8627]
[1745836353899,4.0469,152.38,152.23,6.5665]
[1745836354393,6.5645,152.28,152.23,6.5665]
[1745836354588,6.5645,152.28,152.22,5.82430984]
[1745836354794,4.0469,152.38,152.22,5.82430984]
[1745836354995,6.5636,152.31,152.22,5.82430984]
[1745836355192,6.5636,152.31,152.26,6.5651]
[1745836355496,6.5629,152.32,152.22,5.82430984]
[1745836355994,4.0469,152.38,152.22,5.82430984]
[1745836355995,6.5633,152.31,152.22,5.82430984]
[1745836356297,4.0469,152.38,152.21,92.35087364]
[1745836356496,6.5631,152.32,152.21,92.35087364]
[1745836356895,4.0469,152.38,152.23,6.5664]
[1745836357097,4.41217521,152.37,152.21,92.35087364]
[1745836357393,24.25255935,152.36,152.24,60.9840623]
[1745836357593,13.1224,152.36,152.24,60.9840623]
[1745836358098,13.1224,152.36,152.25,6.5657]
[1745836358297,13.1224,152.36,152.24,60.9840623]
[1745836358593,6.5658,152.25,152.24,60.9840623]
[1745836359099,6.5662,152.24,152.23,66.82227516]
[1745836359499,3.8292,152.32,152.23,66.82227516]
[1745836359699,6.5662,152.24,152.23,66.82227516]
[1745836361093,6.5667,152.23,152.22,5.83821286]
[1745836363902,3.8292,152.32,152.22,5.83821286]
[1745836364102,4.43282547,152.31,152.22,5.83821286]
[1745836364306,6.5667,152.23,152.22,5.83821286]
[1745836364602,4.43937833,152.23,152.16,100.94716236]
[1745836364796,19.84,152.21,152.13,34.03339085]
[1745836364998,6.5701,152.15,152.13,34.03339085]
[1745836365301,472.74,152.2,152.13,34.03339085]
[1745836365702,472.74,152.28,152.13,34.03339085]
[1745836366003,4.43989173,152.27,152.14,6.5705]
[1745836366203,4.43989173,152.26,152.13,34.03339085]
[1745836366404,472.74,152.28,152.13,34.03339085]
[1745836366605,6.5663,152.24,152.13,34.03339085]
[1745836367006,472.74,152.28,152.13,34.03339085]
[1745836367202,6.5661,152.25,152.2,6.5678]
[1745836367606,6.5665,152.24,152.19,6.5683]
[1745836367803,472.74,152.28,152.13,34.03339085]
[1745836368006,472.74,152.28,152.09,13.1451]
[1745836368207,472.74,152.28,152.2,6.5676]
[1745836368606,6.5667,152.23,152.09,13.1451]
[1745836368914,472.74,152.28,152.09,14.28827626]
[1745836369309,4.44643365,152.27,152.09,14.28827626]
[1745836369508,4.44643365,152.26,152.09,1.14317626]
[1745836369706,6.5676,152.21,152.15,6.5697]
[1745836370205,472.74,152.28,152.15,6.5697]
[1745836370402,4.45078274,152.27,152.14,6.5704]
[1745836370600,4.45078274,152.26,152.09,1.14317626]
[1745836370805,6.5676,152.21,152.09,1.14317626]
[1745836371011,472.74,152.28,152.09,1.14317626]
[1745836371210,4.4550167,152.27,152.09,1.14317626]
[1745836371409,4.4550167,152.26,152.16,6.5694]
[1745836371605,4.4550167,152.25,152.16,6.5694]
[1745836371809,6.5674,152.22,152.16,6.5694]
[1745836372610,6.5674,152.22,152.17,6.5691]
[1745836372910,472.74,152.28,152.09,362.14317626]
[1745836373209,6.5675,152.22,152.09,362.14317626]
[1745836373411,472.74,152.28,152.09,362.14317626]
[1745836373611,4.47357832,152.27,152.09,362.14317626]
[1745836373812,6.5685,152.19,152.09,362.14317626]
[1745836374013,472.74,152.28,152.12,6.5713]
[1745836374312,6.5692,152.18,152.09,1.14317626]
[1745836374512,6.5692,152.18,152.12,6.571]
[1745836374712,492.46,152.28,152.08,1.14379622]
[1745836374913,6.5695,152.17,152.08,1.14379622]
[1745836375113,6.5695,152.17,152.11,6.5715]
[1745836375413,6.5695,152.17,152.08,1.14379622]
[1745836375609,6.5697,152.16,152.11,6.5715]
[1745836376305,13.1301,152.27,152.07,11.6569]
[1745836376506,14.26959622,152.32,152.08,13.1461]
[1745836376713,13.1258,152.32,152.07,372.6569]
[1745836376908,472.82,152.36,152.07,372.6569]
[1745836377111,472.82,152.36,152.09,13.1454]
[1745836377312,6.568,152.2,152.07,372.6569]
[1745836377511,19.72,152.31,152.07,372.6569]
[1745836377714,19.72,152.31,152.07,11.6569]
[1745836377911,20.86379622,152.31,152.12,6.5711]
[1745836378107,19.72,152.29,152.07,11.6569]
[1745836378515,32.853,152.24,152.07,11.6569]
[1745836378715,486.013,152.24,152.07,11.6569]
[1745836379017,472.88,152.24,152.07,11.6569]
[1745836379616,6.5688,152.19,152.14,6.5704]
[1745836379813,472.88,152.24,152.14,6.5704]
[1745836380114,4.47422238,152.23,152.15,6.5701]
[1745836380316,4.47422238,152.22,152.07,11.6569]
[1745836380518,13.1284,152.29,152.07,11.6569]
[1745836380712,6.5672,152.22,152.18,6.5688]
[1745836380914,13.1284,152.29,152.18,6.5688]
[1745836381118,4.47401563,152.28,152.08,13.1463]
[1745836381316,4.47401563,152.27,152.08,13.1463]
[1745836381617,472.94,152.32,152.08,361.0]
[1745836381815,4.47233841,152.31,152.08,361.0]
[1745836382022,4.47233841,152.3,152.09,1.19592427]
[1745836382322,4.47233841,152.29,152.09,1.19592427]
[1745836382522,6.5654,152.27,152.21,6.5672]
[1745836383122,6.5654,152.27,152.14,472.94]
[1745836383123,472.94,152.32,152.14,472.94]
[1745836383420,4.47237355,152.31,152.23,6.5664]
[1745836383623,4.47237355,152.3,152.23,6.5664]
[1745836383813,4.47237355,152.29,152.16,7.517]
[1745836384019,472.94,152.32,152.23,6.5663]
[1745836384218,472.94,152.32,152.16,7.517]
[1745836384418,4.47261062,152.31,152.2,6.5676]
[1745836384625,4.47261062,152.3,152.2,6.5676]
[1745836384827,4.47261062,152.29,152.16,7.517]
[1745836385026,4.47261062,152.28,152.22,6.567]
[1745836385227,472.94,152.32,152.22,6.567]
[1745836385425,4.47377097,152.31,152.16,7.517]
[1745836385624,4.47377097,152.3,152.21,6.5673]
[1745836385820,4.47377097,152.29,152.16,7.517]
[1745836386025,4.47377097,152.28,152.21,6.5672]
[1745836386226,472.94,152.32,152.16,7.517]
[1745836386428,4.47678422,152.31,152.16,7.517]
[1745836386629,6.5658,152.26,152.21,6.5672]
[1745836386928,6.5658,152.26,152.16,7.517]
[1745836387129,472.94,152.32,152.16,7.517]
[1745836387321,4.47977291,152.31,152.16,7.517]
[1745836387523,4.47977291,152.3,152.16,7.517]
[1745836387728,4.47977291,152.29,152.16,7.517]
[1745836388028,4.47977291,152.28,152.16,7.517]
[1745836388229,4.47977291,152.27,152.2,6.5677]
[1745836388429,4.47977291,152.26,152.2,6.5677]
[1745836388629,4.47977291,152.25,152.2,6.5677]
[1745836388829,4.47977291,152.24,152.2,6.5677]
[1745836389022,32.8469,152.31,152.16,7.517]
[1745836389226,4.4808781,152.3,152.16,7.517]
[1745836389426,4.4808781,152.29,152.21,6.5675]
[1745836389621,4.4808781,152.28,152.16,7.517]
[1745836389826,4.4808781,152.27,152.16,7.517]
[1745836390124,4.4808781,152.26,152.16,7.517]
[1745836390330,19.72,152.31,152.16,7.517]
[1745836390527,24.20039067,152.3,152.16,7.517]
[1745836390732,472.94,152.32,152.16,3.7694]
[1745836390733,24.20039067,152.29,152.16,3.7694]
[1745836390930,24.20039067,152.28,152.16,3.7694]
[1745836391130,4.48039067,152.27,152.16,3.7694]
[1745836391330,4.48039067,152.26,152.16,3.7694]
[1745836391531,486.0658,152.32,152.22,6.5669]
[1745836391732,4.48006969,152.31,152.22,6.5669]
[1745836391933,4.48006969,152.3,152.22,6.5669]
[1745836392233,4.47982788,152.29,152.16,3.7694]
[1745836392433,32.8417,152.37,152.16,3.7694]
[1745836392634,6.5641,152.29,152.17,13.1384]
[1745836393434,32.8424,152.36,152.16,3.7694]
[1745836393637,4.48024967,152.35,152.22,6.5669]
[1745836393837,24.20024967,152.34,152.16,3.7694]
[1745836394029,19.72,152.32,152.16,3.7694]
[1745836394233,19.72,152.3,152.14,6.5705]
[1745836394434,6.5692,152.18,152.12,3.7659]
[1745836394633,6.5692,152.18,152.14,6.5703]
[1745836395335,13.13,152.27,152.12,3.7659]
[1745836395537,4.48460157,152.26,152.12,3.7659]
[1745836395836,6.569,152.18,152.14,6.5703]
[1745836396638,13.13,152.27,152.12,3.7659]
[1745836396837,4.48705618,152.26,152.12,3.7659]
[1745836397038,4.48705618,152.25,152.12,3.7659]
[1745836397230,13.13,152.27,152.12,3.7659]
[1745836397231,4.48705618,152.24,152.14,6.5704]
[1745836397434,4.48705618,152.23,152.12,3.7659]
[1745836397638,4.48705618,152.22,152.12,3.7659]
[1745836397839,472.86,152.3,152.12,3.7659]
[1745836398137,4.48865473,152.29,152.12,3.7659]
[1745836398439,4.48865473,152.28,152.12,3.7659]
[1745836398639,4.48865473,152.27,152.12,3.7659]
[1745836398838,4.48865473,152.26,152.12,3.7659]
[1745836399140,13.1216,152.37,152.12,3.7659]
[1745836399438,4.48814658,152.36,152.21,6.5673]
[1745836399639,17.61144658,152.35,152.21,6.5673]
[1745836399837,6.566,152.25,152.13,13.1417]
[1745836400039,13.1233,152.35,152.13,13.1417]
[1745836400338,4.48864972,152.34,152.13,13.1417]
[1745836400539,6.5653,152.27,152.13,13.1417]
[1745836400941,13.1233,152.35,152.14,13.1409]
[1745836401138,4.48966222,152.34,152.14,13.1409]
[1745836401338,4.48966222,152.33,152.14,13.1409]
[1745836401533,6.5653,152.27,152.14,13.1409]
[1745836401737,6.5653,152.27,152.22,6.5669]
[1745836401939,13.1233,152.35,152.22,6.5669]
[1745836402141,4.49095551,152.34,152.14,13.1409]
[1745836402339,0.3435,152.39,152.15,13.1401]
[1745836402340,4.49095551,152.33,152.15,13.1401]
[1745836402539,4.49095551,152.32,152.15,13.1401]
[1745836402742,6.5641,152.29,152.15,13.1401]
[1745836402947,6.5641,152.29,152.24,6.5658]
[1745836403243,6.5638,152.3,152.17,472.8]
[1745836403442,4.49030428,152.29,152.18,3.7869]
[1745836403644,0.3435,152.39,152.18,3.7869]
[1745836403844,0.3435,152.39,152.27,6.5647]
[1745836403845,6.5631,152.32,152.27,6.5647]
[1745836404045,4.49037065,152.31,152.27,6.5647]
[1745836404244,6.5631,152.32,152.27,6.5647]
[1745836404442,11.0526102,152.31,152.27,6.5647]
[1745836404742,23.7082,152.38,152.18,3.7869]
[1745836404943,4.48881701,152.37,152.18,3.7869]
[1745836405141,4.48881701,152.36,152.26,6.5649]
[1745836405341,4.48881701,152.35,152.26,6.5649]
[1745836405541,6.5634,152.31,152.26,6.5649]
[1745836405738,3.9882,152.38,152.18,3.7869]
[1745836405943,4.48716415,152.37,152.18,3.7869]
[1745836406144,6.5618,152.35,152.19,3.8445]
[1745836406345,4.48412547,152.34,152.21,13.135]
[1745836406543,4.48412547,152.34,152.22,3.9872]
[1745836406744,6.5616,152.35,152.22,3.9872]
[1745836406943,472.84,152.4,152.22,3.9872]
[1745836407145,4.48352657,152.39,152.22,3.9872]
[1745836407345,6.5612,152.36,152.31,6.5629]
[1745836407541,13.1105,152.5,152.22,364.9872]
[1745836407746,4.113,152.47,152.23,1.19322248]
[1745836408044,65.4133,152.83,152.23,1.19322248]
[1745836408239,96.4834175,152.54,152.22,3.9872]
[1745836408440,6.5546,152.51,152.23,39.48]
[1745836408740,96.4834175,152.54,152.24,1.19131112]
[1745836408942,96.4834175,152.54,152.25,472.7]
[1745836409146,96.4834175,152.54,152.31,13.1261]
[1745836409347,4.113,152.54,152.32,11.4419]
[1745836410554,6.5545,152.52,152.45,6.557]
[1745836411051,4.113,152.54,152.45,6.557]
[1745836411249,4.113,152.54,152.44,6.5575]
[1745836411447,4.113,152.54,152.37,472.52]
[1745836411647,6.5558,152.49,152.37,472.52]
[1745836412152,6.556,152.48,152.42,6.5581]
[1745836412356,4.113,152.54,152.37,472.52]
[1745836412956,6.5562,152.48,152.41,6.5585]
[1745836413154,4.113,152.54,152.41,6.5585]
[1745836413356,6.5562,152.48,152.42,6.5584]
[1745836413957,4.113,152.54,152.37,472.52]
[1745836414458,6.5547,152.51,152.45,6.5568]
[1745836414852,4.113,152.54,152.45,6.5568]
[1745836415155,6.5551,152.5,152.46,6.5567]
[1745836415556,4.113,152.54,152.46,6.5567]
[1745836415757,6.5547,152.51,152.46,6.5567]
[1745836416055,4.113,152.54,152.37,472.52]
[1745836416656,4.113,152.54,152.47,6.556]
[1745836416853,4.113,152.54,152.37,472.52]
[1745836417358,4.113,152.54,152.32,372.4419]
[1745836417553,23.833,152.54,152.32,11.4419]
[1745836418057,13.1076,152.53,152.32,11.4419]
[1745836418657,1.20504119,152.52,152.32,11.4419]
[1745836418860,1.20504119,152.52,152.35,6.5614]
[1745836419159,1.20504119,152.52,152.32,11.4419]
[1745836419360,6.5591,152.41,152.36,6.561]
[1745836419656,492.02,152.5,152.36,6.561]
[1745836420058,6.5595,152.4,152.36,6.561]
[1745836420658,19.72,152.48,152.32,7.6197]
[1745836420855,0.3359,152.47,152.28,472.3]
[1745836421653,6.5615,152.36,152.31,6.5629]
[1745836421860,0.3359,152.47,152.28,472.3]
[1745836423155,32.8337,152.46,152.28,472.3]
[1745836423356,23.8097,152.45,152.28,472.3]
[1745836423758,6.5631,152.32,152.26,11.6691]
[1745836423957,19.72,152.43,152.26,11.6691]
[1745836424360,13.1172,152.42,152.26,11.6691]
[1745836424563,19.72,152.43,152.21,1.14240693]
[1745836424854,6.5647,152.28,152.24,6.566]
[1745836425862,6.5647,152.28,152.25,6.5658]
[1745836426058,19.72,152.38,152.22,7.7322]
[1745836426261,472.42,152.4,152.22,7.7322]
[1745836426461,492.14,152.4,152.25,6.5655]
[1745836426662,6.5637,152.3,152.25,6.5655]
[1745836427161,6.5637,152.3,152.26,6.5652]
[1745836427363,6.5631,152.32,152.22,7.7322]
[1745836427661,492.14,152.4,152.26,6.565]
[1745836427961,6.5635,152.31,152.22,7.7322]
[1745836428263,472.42,152.4,152.22,7.7322]
[1745836428471,6.5626,152.33,152.22,7.7322]
[1745836428657,472.42,152.4,152.22,7.7322]
[1745836428965,6.5635,152.31,152.27,6.5648]
[1745836429455,6.5635,152.31,152.22,7.7322]
[1745836429862,472.42,152.4,152.22,7.7322]
[1745836430863,6.5639,152.3,152.26,6.5653]
[1745836431163,472.42,152.4,152.22,7.7322]
[1745836431463,472.42,152.4,152.27,6.5645]
[1745836431958,472.42,152.4,152.22,7.7322]
[1745836433167,472.42,152.4,152.29,6.5637]
[1745836433467,472.42,152.4,152.22,7.7322]
[1745836433765,6.5622,152.34,152.3,6.5636]
[1745836434569,472.42,152.4,152.22,7.7322]
[1745836434765,13.116,152.44,152.23,1.1941102]
[1745836434968,6.5605,152.38,152.23,1.1941102]
[1745836435264,13.116,152.44,152.23,14.3275102]
[1745836435467,13.116,152.44,152.24,1.1941102]
[1745836435665,6.5607,152.37,152.33,6.5623]
[1745836436368,13.116,152.44,152.23,13.1334]
[1745836436869,6.5607,152.37,152.24,1.19405504]
[1745836437066,6.5607,152.37,152.23,13.1334]
[1745836437267,6.5607,152.37,152.24,1.19431567]
[1745836437464,13.116,152.44,152.24,1.19431567]
[1745836437668,4.0897,152.45,152.25,13.1316]
[1745836438071,472.52,152.48,152.26,1.19384052]
[1745836438272,472.52,152.48,152.29,13.1281]
[1745836438569,6.5578,152.44,152.38,6.56]
[1745836438874,13.1071,152.54,152.31,4.0237]
[1745836439070,6.5558,152.49,152.43,6.5579]
[1745836439271,4.0376,152.53,152.31,4.0237]
[1745836439473,6.5562,152.48,152.42,6.5582]
[1745836439875,6.5562,152.48,152.33,13.1247]
[1745836440476,6.5564,152.47,152.33,13.1247]
[1745836440665,4.0376,152.53,152.33,13.1247]
[1745836440974,6.5564,152.47,152.33,13.1247]
[1745836441175,4.0376,152.53,152.33,13.1247]
[1745836441769,4.0376,152.53,152.39,6.5598]
[1745836442477,4.0376,152.53,152.4,6.5592]
[1745836443476,19.72,152.52,152.4,6.5592]
[1745836443679,6.5583,152.43,152.4,6.5592]
[1745836443873,19.72,152.52,152.39,6.5596]
[1745836444070,13.1093,152.51,152.39,6.5596]
[1745836444275,6.5588,152.42,152.39,6.5596]
[1745836444473,13.1093,152.51,152.31,4.0237]
[1745836444773,6.5588,152.42,152.31,4.0237]
[1745836444978,19.72,152.49,152.31,4.0237]
[1745836445376,19.72,152.47,152.31,4.0237]
[1745836445573,0.3401,152.46,152.31,4.0237]
[1745836445973,6.5595,152.4,152.37,6.5605]
[1745836446280,13.4541,152.46,152.31,4.0237]
[1745836446578,33.1741,152.46,152.31,4.0237]
[1745836447180,6.5604,152.38,152.33,6.5621]
[1745836447485,0.3401,152.46,152.31,4.0237]
[1745836447683,6.5592,152.41,152.36,6.5608]
[1745836447978,0.3401,152.46,152.36,6.5608]
[1745836448179,0.3401,152.46,152.35,6.5614]
[1745836448879,6.5599,152.39,152.35,6.5614]
[1745836449782,6.5604,152.38,152.34,6.5618]
[1745836449971,0.3401,152.46,152.34,6.5618]
[1745836450176,0.3401,152.46,152.31,4.0237]
[1745836450386,0.3401,152.46,152.34,6.5615]
[1745836450580,6.5607,152.37,152.34,6.5615]
[1745836450883,0.3401,152.46,152.34,6.5615]
[1745836451385,0.3401,152.46,152.31,4.0237]
[1745836451583,19.72,152.44,152.31,4.0237]
[1745836451784,13.1171,152.42,152.31,4.0237]
[1745836452183,4.1279,152.43,152.31,4.0237]
[1745836452679,6.5605,152.38,152.35,6.5614]
[1745836453284,472.36,152.45,152.31,4.0237]
[1745836453487,13.1134,152.47,152.31,4.0237]
[1745836453880,6.5595,152.4,152.37,6.5604]
[1745836454081,13.1134,152.47,152.31,4.0237]
[1745836454582,13.1138,152.46,152.31,4.0237]
[1745836454881,6.5596,152.4,152.31,4.0237]
[1745836455083,13.1138,152.46,152.36,6.5608]
[1745836455380,13.1138,152.46,152.31,4.0237]
[1745836456085,6.5596,152.4,152.36,6.5606]
[1745836456285,6.5596,152.4,152.31,4.0237]
[1745836456488,6.5594,152.4,152.31,4.0237]
[1745836456683,509.4422,152.5,152.31,4.0237]
[1745836457080,509.4422,152.5,152.38,6.5601]
[1745836457285,6.5586,152.42,152.38,6.5601]
[1745836457683,509.4422,152.5,152.37,6.5604]
[1745836457988,6.5591,152.41,152.37,6.5604]
[1745836458784,6.5587,152.42,152.38,6.5601]
[1745836458989,505.1902,152.5,152.31,4.0237]
[1745836459190,32.831,152.49,152.31,4.0237]
[1745836459391,6.5604,152.38,152.31,4.0237]
[1745836459886,13.1138,152.46,152.31,4.0237]
[1745836460390,13.1145,152.45,152.31,4.0237]
[1745836461090,6.5604,152.38,152.31,4.0237]
[1745836461293,13.1145,152.45,152.31,4.0237]
[1745836461585,6.5609,152.37,152.33,6.5621]
[1745836462085,19.72,152.46,152.27,472.36]
[1745836462388,1.20547892,152.45,152.26,3.88]
[1745836462589,6.5632,152.32,152.28,6.5643]
[1745836462783,192.05670975,152.44,152.23,3.7794]
[1745836462982,19.72,152.37,152.19,7.74027843]
[1745836463380,19.72,152.35,152.19,7.74027843]
[1745836463586,4.63574584,152.34,152.19,7.74027843]
[1745836463886,4.63102012,152.33,152.19,7.74027843]
[1745836464091,4.63102012,152.32,152.17,4.0248]
[1745836464291,6.5648,152.28,152.17,4.0248]
[1745836464491,13.1217,152.37,152.17,4.0248]
[1745836464686,6.5648,152.28,152.17,4.0248]
[1745836464892,185.45420975,152.42,152.17,4.0248]
[1745836465093,4.62720521,152.38,152.17,4.0248]
[1745836465289,6.5653,152.27,152.23,6.5663]
[1745836465494,6.5653,152.27,152.17,4.0248]
[1745836465896,6.5653,152.27,152.23,6.5664]
[1745836466089,19.72,152.34,152.17,4.0248]
[1745836466295,4.62563093,152.33,152.17,4.0248]
[1745836466496,4.62563093,152.32,152.22,6.5667]
[1745836466699,4.62563093,152.31,152.17,4.0248]
[1745836466897,4.62563093,152.3,152.17,4.0248]
[1745836467097,4.62563093,152.29,152.17,4.0248]
[1745836467299,4.62563093,152.28,152.17,4.0248]
[1745836467594,19.72,152.26,152.14,472.5]
[1745836467793,4.62563093,152.27,152.09,11.9257]
[1745836467794,4.62206033,152.25,152.09,11.9257]
[1745836467994,4.62206033,152.24,152.16,6.5694]
[1745836468196,4.0159,152.27,152.16,6.5694]
[1745836468392,6.5678,152.21,152.09,11.9257]
[1745836468699,23.7359,152.27,152.09,11.9257]
[1745836468896,4.61895148,152.26,152.09,11.9257]
[1745836469097,4.61895148,152.25,152.09,11.9257]
[1745836469400,23.7359,152.27,152.09,11.9257]
[1745836469598,4.61578771,152.26,152.09,11.9257]
[1745836469793,4.61578771,152.25,152.09,11.9257]
[1745836469990,6.5684,152.19,152.09,11.9257]
[1745836470194,23.7359,152.27,152.09,11.9257]
[1745836470400,19.72,152.25,152.07,1.14343919]
[1745836470597,4.61558898,152.24,152.15,6.5698]
[1745836470801,23.7359,152.27,152.15,6.5698]
[1745836471102,4.61073718,152.26,152.15,6.5698]
[1745836471300,4.61073718,152.25,152.15,6.5698]
[1745836471494,23.7359,152.27,152.16,6.5695]
[1745836471801,4.6076293,152.26,152.08,11.9209]
[1745836472003,4.0159,152.27,152.08,11.9209]
[1745836472004,4.6076293,152.25,152.08,11.9209]
[1745836472196,4.0159,152.27,152.09,1.19827182]
[1745836472598,4.60497068,152.26,152.08,11.9209]
[1745836472792,4.60497068,152.25,152.08,11.9209]
[1745836472996,4.60497068,152.24,152.08,11.9209]
[1745836473201,6.5672,152.22,152.08,11.9209]
[1745836473405,4.0159,152.27,152.08,11.9209]
[1745836473703,4.60523421,152.26,152.08,372.9209]
[1745836473904,4.1594,152.41,152.09,1.19653878]
[1745836474198,24.31946334,152.4,152.13,13.1417]
[1745836474405,19.72,152.38,152.14,473.97653878]
[1745836474602,4.59946334,152.37,152.15,1.19653878]
[1745836474801,6.5628,152.32,152.15,14.33673878]
[1745836474997,6.5628,152.32,152.16,4.93613878]
[1745836475206,6.5628,152.32,152.26,6.5651]
[1745836475911,6.5628,152.32,152.17,7.9253]
[1745836476206,6.5628,152.32,152.18,1.19562483]
[1745836476405,6.5628,152.32,152.27,6.5649]
[1745836477910,6.5624,152.33,152.28,6.5644]
[1745836478207,0.3595,152.39,152.17,7.9253]
[1745836478408,4.59779126,152.38,152.18,1.19602059]
[1745836478602,0.3595,152.39,152.18,1.19602059]
[1745836478603,3.7999,152.41,152.18,1.19602059]
[1745836478804,3.7999,152.41,152.17,7.9253]
[1745836479107,3.7999,152.41,152.33,6.5623]
[1745836479304,3.7999,152.41,152.25,472.7]
[1745836479607,3.7999,152.41,152.26,11.6535]
[1745836480808,3.7999,152.41,152.33,6.562]
[1745836481306,6.5609,152.37,152.32,6.5624]
[1745836481610,3.7999,152.41,152.26,11.6535]
[1745836482108,0.3531,152.44,152.26,11.6535]
[1745836482310,3.8891,152.48,152.27,1.19406785]
[1745836482805,6.5598,152.39,152.27,1.19406785]
[1745836483004,3.8891,152.48,152.27,1.19406785]
[1745836483207,4.59477733,152.47,152.27,1.19406785]
[1745836483408,6.5583,152.43,152.27,1.19406785]
[1745836483605,6.5583,152.43,152.26,11.6535]
[1745836483805,6.5585,152.42,152.27,1.19346721]
[1745836484804,3.8891,152.48,152.27,1.19346721]
[1745836485010,4.59577299,152.47,152.27,1.19346721]
[1745836485208,4.59577299,152.46,152.27,1.19346721]
[1745836485413,6.5601,152.39,152.34,6.5619]
[1745836485606,3.8891,152.48,152.26,11.6535]
[1745836485807,4.59675222,152.47,152.26,11.6535]
[1745836486007,4.59675222,152.46,152.35,6.5612]
[1745836486307,4.59675222,152.45,152.35,6.5612]
[1745836486511,492.34,152.56,152.26,11.6535]
[1745836486706,4.4855,152.5,152.26,11.6535]
[1745836487002,4.59570998,152.49,152.26,11.6535]
[1745836487209,4.59570998,152.48,152.27,1.19362154]
[1745836487410,6.5581,152.43,152.29,13.1281]
[1745836487603,6.5581,152.43,152.38,6.5601]
[1745836487808,4.4855,152.5,152.26,11.6535]
[1745836488009,4.59604954,152.49,152.27,1.19418067]
[1745836488211,4.133,152.5,152.27,362.19418067]
[1745836488406,6.5563,152.48,152.3,13.1272]
[1745836488604,4.133,152.5,152.3,13.1272]
[1745836488803,4.133,152.5,152.31,1.19293854]